[Event "Late-Titled-Tuesday-Blitz-April-16-2024"]
[Site "Chess.com"]
[Date "2024.04.16"]
[Round "1"]
[White "Fins0905"]
[Black "Nemsko"]
[Result "1/2-1/2"]
[WhiteElo "2769"]
[BlackElo "2435"]
[TimeControl "180+1"]
[EndTime "14:09:50 PDT"]
[Termination "Game drawn - insufficient material"]

1. Nf3 {[%clk 0:02:58]} 1... Nf6 {[%clk 0:02:59.9]} 2. c4 {[%clk 0:02:57]} 2...
e6 {[%clk 0:03:00.1]} 3. Nc3 {[%clk 0:02:56.8]} 3... d5 {[%clk 0:03:00.6]} 4. d4
{[%clk 0:02:56.9]} 4... Be7 {[%clk 0:02:58.4]} 5. cxd5 {[%clk 0:02:56.2]} 5...
exd5 {[%clk 0:02:59.3]} 6. Bg5 {[%clk 0:02:55.7]} 6... c6 {[%clk 0:02:59.7]} 7.
e3 {[%clk 0:02:56.2]} 7... h6 {[%clk 0:03:00]} 8. Bh4 {[%clk 0:02:56.1]} 8...
O-O {[%clk 0:03:00.6]} 9. Bd3 {[%clk 0:02:56]} 9... Be6 {[%clk 0:03:00.8]} 10.
O-O {[%clk 0:02:55.8]} 10... Nbd7 {[%clk 0:03:00.6]} 11. h3 {[%clk 0:02:55.9]}
11... Re8 {[%clk 0:03:00.9]} 12. Bg3 {[%clk 0:02:55.8]} 12... Nf8 {[%clk
0:03:00.6]} 13. Ne5 {[%clk 0:02:55.4]} 13... Rc8 {[%clk 0:02:58.7]} 14. Rc1
{[%clk 0:02:47.4]} 14... a6 {[%clk 0:02:58.5]} 15. Na4 {[%clk 0:02:41.8]} 15...
N8d7 {[%clk 0:02:53.8]} 16. Nxd7 {[%clk 0:02:35.9]} 16... Nxd7 {[%clk
0:02:52.3]} 17. a3 {[%clk 0:02:31.9]} 17... Bh4 {[%clk 0:02:38.6]} 18. Bh2
{[%clk 0:02:29.6]} 18... Be7 {[%clk 0:01:59.6]} 19. b4 {[%clk 0:02:27.5]} 19...
b5 {[%clk 0:01:46.8]} 20. Nc5 {[%clk 0:02:20.5]} 20... Nxc5 {[%clk 0:01:40.5]}
21. bxc5 {[%clk 0:02:21.4]} 21... a5 {[%clk 0:01:37.8]} 22. a4 {[%clk
0:02:15.5]} 22... Qd7 {[%clk 0:01:26.5]} 23. f4 {[%clk 0:01:32.3]} 23... Bf5
{[%clk 0:01:07.2]} 24. axb5 {[%clk 0:01:16.6]} 24... cxb5 {[%clk 0:01:08.1]} 25.
c6 {[%clk 0:01:10.1]} 25... Qe6 {[%clk 0:01:07.6]} 26. Bxb5 {[%clk 0:01:04.3]}
26... Qxe3+ {[%clk 0:01:07.4]} 27. Kh1 {[%clk 0:01:04.7]} 27... Bb4 {[%clk
0:01:05.7]} 28. Rf3 {[%clk 0:00:52.9]} 28... Qe7 {[%clk 0:00:53.9]} 29. Qf1
{[%clk 0:00:50.8]} 29... Rc7 {[%clk 0:00:50.5]} 30. Bg3 {[%clk 0:00:36.3]} 30...
Be4 {[%clk 0:00:46]} 31. Rf2 {[%clk 0:00:35.3]} 31... f5 {[%clk 0:00:44.9]} 32.
Kh2 {[%clk 0:00:34.1]} 32... Rb8 {[%clk 0:00:43.4]} 33. Ba4 {[%clk 0:00:33.9]}
33... Qd6 {[%clk 0:00:39.2]} 34. Qa6 {[%clk 0:00:28.2]} 34... Rbc8 {[%clk
0:00:35.8]} 35. Rff1 {[%clk 0:00:25]} 35... Kh7 {[%clk 0:00:34.1]} 36. Qe2
{[%clk 0:00:21.7]} 36... Re7 {[%clk 0:00:29.2]} 37. Qf2 {[%clk 0:00:21.4]} 37...
Rec7 {[%clk 0:00:27.6]} 38. Bh4 {[%clk 0:00:21]} 38... Rb8 {[%clk 0:00:22.9]}
39. Qe3 {[%clk 0:00:20]} 39... Ba3 {[%clk 0:00:20.6]} 40. Rc3 {[%clk 0:00:18.8]}
40... Bb4 {[%clk 0:00:19.1]} 41. Rb3 {[%clk 0:00:18.1]} 41... Re8 {[%clk
0:00:18.8]} 42. Qf2 {[%clk 0:00:17.4]} 42... Re6 {[%clk 0:00:19]} 43. Bg3 {[%clk
0:00:17.7]} 43... Rg6 {[%clk 0:00:19.3]} 44. Rc1 {[%clk 0:00:17.9]} 44... Re6
{[%clk 0:00:19.5]} 45. Re3 {[%clk 0:00:17.8]} 45... Rg6 {[%clk 0:00:19.2]} 46.
Kh1 {[%clk 0:00:18.3]} 46... Re6 {[%clk 0:00:19.3]} 47. Bh2 {[%clk 0:00:18.8]}
47... Qe7 {[%clk 0:00:16.9]} 48. Bg3 {[%clk 0:00:15.9]} 48... Bxg2+ {[%clk
0:00:16]} 49. Kxg2 {[%clk 0:00:13.9]} 49... Rxe3 {[%clk 0:00:16.6]} 50. Rc2
{[%clk 0:00:13.8]} 50... Be1 {[%clk 0:00:15.9]} 51. Bh4 {[%clk 0:00:07.3]} 51...
Qxh4 {[%clk 0:00:12.4]} 52. Qxe3 {[%clk 0:00:04.7]} 52... Bb4 {[%clk 0:00:08.7]}
53. Rf2 {[%clk 0:00:04]} 53... Bd6 {[%clk 0:00:06.6]} 54. Qd3 {[%clk 0:00:04.5]}
54... Qf6 {[%clk 0:00:05.8]} 55. Qf3 {[%clk 0:00:04.5]} 55... Qg6+ {[%clk
0:00:06.3]} 56. Qg3 {[%clk 0:00:04.2]} 56... Qf6 {[%clk 0:00:06.9]} 57. Bc2
{[%clk 0:00:03.7]} 57... g6 {[%clk 0:00:06.2]} 58. Re2 {[%clk 0:00:04.1]} 58...
Rxc6 {[%clk 0:00:06.3]} 59. Qf3 {[%clk 0:00:03.8]} 59... Qxd4 {[%clk 0:00:05]}
60. Bd3 {[%clk 0:00:04.3]} 60... Rc7 {[%clk 0:00:04]} 61. Bb1 {[%clk 0:00:04.1]}
61... Re7 {[%clk 0:00:04.6]} 62. Ba2 {[%clk 0:00:04.3]} 62... Rxe2+ {[%clk
0:00:03.9]} 63. Qxe2 {[%clk 0:00:05.2]} 63... Qe4+ {[%clk 0:00:04.5]} 64. Qf3
{[%clk 0:00:05.9]} 64... Qxf3+ {[%clk 0:00:04.7]} 65. Kxf3 {[%clk 0:00:06.8]}
65... Bc5 {[%clk 0:00:04.5]} 66. Bxd5 {[%clk 0:00:07]} 66... Kg7 {[%clk
0:00:05.1]} 67. Bb3 {[%clk 0:00:06.6]} 67... Kf6 {[%clk 0:00:05.7]} 68. Ba4
{[%clk 0:00:06.9]} 68... g5 {[%clk 0:00:06.2]} 69. Bb3 {[%clk 0:00:06.5]} 69...
Bd6 {[%clk 0:00:05.9]} 70. fxg5+ {[%clk 0:00:06.7]} 70... hxg5 {[%clk
0:00:06.8]} 71. Ba2 {[%clk 0:00:06.9]} 71... Ke5 {[%clk 0:00:07]} 72. Bb1 {[%clk
0:00:07.3]} 72... Be7 {[%clk 0:00:07.3]} 73. Bc2 {[%clk 0:00:07.2]} 73... f4
{[%clk 0:00:07.9]} 74. Bb1 {[%clk 0:00:06.2]} 74... a4 {[%clk 0:00:07.4]} 75.
Ba2 {[%clk 0:00:06.1]} 75... a3 {[%clk 0:00:08.3]} 76. Bb3 {[%clk 0:00:06.4]}
76... Bf6 {[%clk 0:00:08.2]} 77. Ba2 {[%clk 0:00:06.4]} 77... Be7 {[%clk
0:00:08.7]} 78. Bb3 {[%clk 0:00:06.9]} 78... Kf5 {[%clk 0:00:09.3]} 79. Ba2
{[%clk 0:00:07.4]} 79... Kg6 {[%clk 0:00:10]} 80. Bb3 {[%clk 0:00:07.8]} 80...
Kh5 {[%clk 0:00:10.7]} 81. Ba2 {[%clk 0:00:07.6]} 81... Kh4 {[%clk 0:00:11.6]}
82. Kg2 {[%clk 0:00:08]} 82... Bd6 {[%clk 0:00:10.8]} 83. Be6 {[%clk 0:00:07.3]}
83... Be5 {[%clk 0:00:10.7]} 84. Bd5 {[%clk 0:00:07.4]} 84... Bd4 {[%clk
0:00:10.7]} 85. Be6 {[%clk 0:00:07.7]} 85... Be5 {[%clk 0:00:11]} 86. Bd5 {[%clk
0:00:08.2]} 86... Kh5 {[%clk 0:00:09.6]} 87. Be6 {[%clk 0:00:08.5]} 87... Kg6
{[%clk 0:00:09.9]} 88. Ba2 {[%clk 0:00:08.7]} 88... Kf6 {[%clk 0:00:10.8]} 89.
Kf3 {[%clk 0:00:09.1]} 89... Kg6 {[%clk 0:00:09.9]} 90. Bb3 {[%clk 0:00:09.5]}
90... Bf6 {[%clk 0:00:10.4]} 91. Ba2 {[%clk 0:00:09.7]} 91... Kf5 {[%clk
0:00:10.4]} 92. Bb3 {[%clk 0:00:09.3]} 92... Ke5 {[%clk 0:00:10.9]} 93. Ba2
{[%clk 0:00:09.2]} 93... Kd4 {[%clk 0:00:11.5]} 94. h4 {[%clk 0:00:09.6]} 94...
gxh4 {[%clk 0:00:11.7]} 95. Kxf4 {[%clk 0:00:10.1]} 95... Kc3 {[%clk 0:00:12.4]}
96. Kg4 {[%clk 0:00:10.5]} 96... Kb2 {[%clk 0:00:12.5]} 97. Be6 {[%clk
0:00:10.8]} 97... Kc3 {[%clk 0:00:11.7]} 98. Kh3 {[%clk 0:00:10.3]} 98... Kd4
{[%clk 0:00:11.7]} 99. Kg2 {[%clk 0:00:10.6]} 99... Ke5 {[%clk 0:00:12.2]} 100.
Ba2 {[%clk 0:00:10.5]} 100... Kf4 {[%clk 0:00:12.8]} 101. Kh1 {[%clk 0:00:11]}
101... Kg3 {[%clk 0:00:12.9]} 102. Bb3 {[%clk 0:00:11.5]} 102... h3 {[%clk
0:00:13.1]} 103. Ba2 {[%clk 0:00:12.4]} 103... Kh4 {[%clk 0:00:10.5]} 104. Bb3
{[%clk 0:00:13.3]} 104... Be5 {[%clk 0:00:11]} 105. Ba2 {[%clk 0:00:13.8]}
105... Bd4 {[%clk 0:00:11.7]} 106. Bb3 {[%clk 0:00:14.3]} 106... Bf2 {[%clk
0:00:12.1]} 107. Ba2 {[%clk 0:00:14.8]} 107... Bg3 {[%clk 0:00:12.7]} 108. Bb3
{[%clk 0:00:15.2]} 108... h2 {[%clk 0:00:07.8]} 109. Ba2 {[%clk 0:00:15.4]}
109... Kg4 {[%clk 0:00:08.7]} 110. Bb3 {[%clk 0:00:15.8]} 110... Kf3 {[%clk
0:00:09.6]} 111. Ba2 {[%clk 0:00:16.2]} 111... Kf2 {[%clk 0:00:10.5]} 112. Bb3
{[%clk 0:00:16.4]} 112... Ke1 {[%clk 0:00:11.3]} 113. Ba2 {[%clk 0:00:16.7]}
113... Kd2 {[%clk 0:00:12.2]} 114. Bc4 {[%clk 0:00:16.8]} 114... Kc3 {[%clk
0:00:13.1]} 115. Ba2 {[%clk 0:00:17]} 115... Kb2 {[%clk 0:00:14]} 116. Bc4
{[%clk 0:00:17.4]} 116... Kc3 {[%clk 0:00:14]} 117. Ba2 {[%clk 0:00:17.6]}
117... Be5 {[%clk 0:00:14.7]} 118. Bd5 {[%clk 0:00:17.6]} 118... Kb2 {[%clk
0:00:15.6]} 119. Be6 {[%clk 0:00:17.5]} 119... a2 {[%clk 0:00:13.4]} 120. Bxa2
{[%clk 0:00:17.4]} 120... Kxa2 {[%clk 0:00:14.3]} 121. Kg2 {[%clk 0:00:17.7]}
121... h1=Q+ {[%clk 0:00:13.9]} 122. Kxh1 {[%clk 0:00:18.6]} 1/2-1/2

[Event "Late-Titled-Tuesday-Blitz-April-16-2024"]
[Site "Chess.com"]
[Date "2024.04.16"]
[Round "2"]
[White "miraitrunks"]
[Black "FizzyBand"]
[Result "0-1"]
[WhiteElo "2206"]
[BlackElo "2549"]
[TimeControl "180+1"]
[EndTime "14:13:14 PDT"]
[Termination "FizzyBand won by resignation"]

1. e4 {[%clk 0:02:55.6]} 1... c5 {[%clk 0:03:00]} 2. Nc3 {[%clk 0:02:49.3]} 2...
Nc6 {[%clk 0:02:58.3]} 3. Nge2 {[%clk 0:02:49.6]} 3... g6 {[%clk 0:02:58.6]} 4.
g3 {[%clk 0:02:49.9]} 4... Bg7 {[%clk 0:02:58.6]} 5. Bg2 {[%clk 0:02:50.2]} 5...
d6 {[%clk 0:02:59.3]} 6. O-O {[%clk 0:02:50.1]} 6... e5 {[%clk 0:02:58.9]} 7. d3
{[%clk 0:02:48.6]} 7... Nge7 {[%clk 0:02:58.5]} 8. f4 {[%clk 0:02:48.2]} 8...
O-O {[%clk 0:02:58.2]} 9. a4 {[%clk 0:02:45.2]} 9... f5 {[%clk 0:02:52.2]} 10.
Be3 {[%clk 0:02:37.2]} 10... Nd4 {[%clk 0:02:50.3]} 11. Nd5 {[%clk 0:02:31.6]}
11... Nxd5 {[%clk 0:02:45.6]} 12. exd5 {[%clk 0:02:32.5]} 12... Nxe2+ {[%clk
0:02:41.1]} 13. Qxe2 {[%clk 0:02:32.2]} 13... exf4 {[%clk 0:02:40.9]} 14. Bxf4
{[%clk 0:02:32.4]} 14... Bxb2 {[%clk 0:02:40.1]} 15. Rab1 {[%clk 0:02:32.3]}
15... Bd4+ {[%clk 0:02:39.8]} 16. Kh1 {[%clk 0:02:32.4]} 16... Re8 {[%clk
0:02:33.6]} 17. Qf3 {[%clk 0:02:30.1]} 17... b6 {[%clk 0:02:25.9]} 18. Rbe1
{[%clk 0:02:29.5]} 18... Bd7 {[%clk 0:02:23.6]} 19. Rxe8+ {[%clk 0:02:24.1]}
19... Bxe8 {[%clk 0:02:22.3]} 20. Re1 {[%clk 0:02:23.7]} 20... Bf7 {[%clk
0:02:19.6]} 21. g4 {[%clk 0:02:23.5]} 21... Qh4 {[%clk 0:02:16]} 22. gxf5 {[%clk
0:02:18.6]} 22... Qxe1+ {[%clk 0:02:13.5]} 0-1

[Event "Late-Titled-Tuesday-Blitz-April-16-2024"]
[Site "Chess.com"]
[Date "2024.04.16"]
[Round "2"]
[White "cristiano78"]
[Black "Bryanl106"]
[Result "0-1"]
[WhiteElo "2286"]
[BlackElo "2700"]
[TimeControl "180+1"]
[EndTime "14:13:33 PDT"]
[Termination "Bryanl106 won by resignation"]

1. d4 {[%clk 0:02:59.1]} 1... Nf6 {[%clk 0:02:59.8]} 2. c4 {[%clk 0:02:59]} 2...
g6 {[%clk 0:02:59.4]} 3. Nf3 {[%clk 0:02:59.5]} 3... c5 {[%clk 0:03:00]} 4. d5
{[%clk 0:02:59.1]} 4... Bg7 {[%clk 0:03:00.4]} 5. Nc3 {[%clk 0:02:59.7]} 5...
O-O {[%clk 0:03:00.7]} 6. h3 {[%clk 0:02:58.2]} 6... d6 {[%clk 0:03:00.4]} 7. e4
{[%clk 0:02:58.3]} 7... e6 {[%clk 0:03:00.4]} 8. Bd3 {[%clk 0:02:57.9]} 8... Na6
{[%clk 0:02:58.7]} 9. O-O {[%clk 0:02:57.5]} 9... Nc7 {[%clk 0:02:58.9]} 10. a4
{[%clk 0:02:57.1]} 10... e5 {[%clk 0:02:57.4]} 11. b3 {[%clk 0:02:51.7]} 11...
a5 {[%clk 0:02:55.8]} 12. Nb5 {[%clk 0:02:50.7]} 12... Nxb5 {[%clk 0:02:55.2]}
13. axb5 {[%clk 0:02:50.6]} 13... b6 {[%clk 0:02:56.1]} 14. Bd2 {[%clk
0:02:50.1]} 14... Rb8 {[%clk 0:02:55.9]} 15. Bc3 {[%clk 0:02:48.2]} 15... Nh5
{[%clk 0:02:55.7]} 16. Nh2 {[%clk 0:02:41.1]} 16... Nf4 {[%clk 0:02:55.5]} 17.
Qf3 {[%clk 0:02:37.2]} 17... f5 {[%clk 0:02:43]} 18. Qe3 {[%clk 0:02:32.5]}
18... fxe4 {[%clk 0:02:41.7]} 19. Bxe4 {[%clk 0:02:32.1]} 19... Bf5 {[%clk
0:02:40.8]} 20. f3 {[%clk 0:02:27.8]} 20... Qg5 {[%clk 0:02:39.1]} 21. Ng4
{[%clk 0:02:12.2]} 21... h5 {[%clk 0:02:33.7]} 22. g3 {[%clk 0:01:53.6]} 22...
hxg4 {[%clk 0:02:29.9]} 23. gxf4 {[%clk 0:01:52.2]} 23... exf4 {[%clk
0:02:29.6]} 24. Qd2 {[%clk 0:01:48.5]} 24... gxf3+ {[%clk 0:02:28.6]} 25. Kh1
{[%clk 0:01:44.2]} 25... Bxe4 {[%clk 0:02:28.8]} 26. Bxg7 {[%clk 0:01:43]} 26...
f2+ {[%clk 0:02:29]} 0-1

[Event "Late-Titled-Tuesday-Blitz-April-16-2024"]
[Site "Chess.com"]
[Date "2024.04.16"]
[Round "2"]
[White "esrosenberg"]
[Black "dennisodessa"]
[Result "0-1"]
[WhiteElo "2341"]
[BlackElo "2536"]
[TimeControl "180+1"]
[EndTime "14:13:49 PDT"]
[Termination "dennisodessa won by resignation"]

1. d4 {[%clk 0:03:00.9]} 1... Nf6 {[%clk 0:03:00]} 2. Nf3 {[%clk 0:03:01.3]}
2... e6 {[%clk 0:03:00.4]} 3. g3 {[%clk 0:03:00.4]} 3... b6 {[%clk 0:03:00.6]}
4. Bg2 {[%clk 0:03:00.6]} 4... Bb7 {[%clk 0:03:01.5]} 5. O-O {[%clk 0:03:00.6]}
5... Be7 {[%clk 0:03:02.2]} 6. c4 {[%clk 0:03:00.6]} 6... O-O {[%clk 0:03:02.9]}
7. Nc3 {[%clk 0:03:00.8]} 7... Ne4 {[%clk 0:03:03.6]} 8. Nxe4 {[%clk 0:03:01]}
8... Bxe4 {[%clk 0:03:04.5]} 9. Ne1 {[%clk 0:03:01.1]} 9... Bxg2 {[%clk
0:03:05.4]} 10. Nxg2 {[%clk 0:03:01.1]} 10... d6 {[%clk 0:03:06.3]} 11. b3
{[%clk 0:02:57.4]} 11... Nd7 {[%clk 0:03:07.2]} 12. d5 {[%clk 0:02:49.3]} 12...
Bf6 {[%clk 0:03:06.4]} 13. Rb1 {[%clk 0:02:48.8]} 13... e5 {[%clk 0:03:00.8]}
14. e4 {[%clk 0:02:47.3]} 14... Nc5 {[%clk 0:02:58.7]} 15. f3 {[%clk 0:02:42.7]}
15... a5 {[%clk 0:02:58.6]} 16. Ne1 {[%clk 0:02:42.5]} 16... Bg5 {[%clk
0:02:57.1]} 17. Nd3 {[%clk 0:02:33.9]} 17... Bxc1 {[%clk 0:02:50.9]} 18. Rxc1
{[%clk 0:02:34.8]} 18... f5 {[%clk 0:02:49.3]} 19. Nxc5 {[%clk 0:02:34.3]} 19...
bxc5 {[%clk 0:02:50.2]} 20. Qd3 {[%clk 0:02:31.4]} 20... f4 {[%clk 0:02:49.4]}
21. Kh1 {[%clk 0:02:27.4]} 21... fxg3 {[%clk 0:02:44.2]} 22. hxg3 {[%clk
0:02:26.9]} 22... Qg5 {[%clk 0:02:44.8]} 23. Kg2 {[%clk 0:02:27]} 23... Rf6
{[%clk 0:02:44.1]} 24. Rc2 {[%clk 0:02:24.7]} 24... Raf8 {[%clk 0:02:38.7]} 25.
Qd2 {[%clk 0:02:18.4]} 25... Qh5 {[%clk 0:02:35.4]} 26. Rc3 {[%clk 0:02:14.6]}
26... Rh6 {[%clk 0:02:33.8]} 27. Kf2 {[%clk 0:02:13.1]} 27... Qh2+ {[%clk
0:02:26.2]} 28. Ke3 {[%clk 0:02:13]} 28... Qxg3 {[%clk 0:02:26.8]} 29. Qf2
{[%clk 0:02:11.2]} 29... Qf4+ {[%clk 0:02:25.5]} 30. Kd3 {[%clk 0:02:11]} 30...
Rh3 {[%clk 0:02:05.6]} 0-1

[Event "Late-Titled-Tuesday-Blitz-April-16-2024"]
[Site "Chess.com"]
[Date "2024.04.16"]
[Round "2"]
[White "PotapovaM"]
[Black "rajesh1464"]
[Result "1-0"]
[WhiteElo "2544"]
[BlackElo "2347"]
[TimeControl "180+1"]
[EndTime "14:14:03 PDT"]
[Termination "PotapovaM won by resignation"]

1. e4 {[%clk 0:02:59.9]} 1... c5 {[%clk 0:02:59.9]} 2. Nf3 {[%clk 0:02:59.5]}
2... d6 {[%clk 0:03:00.2]} 3. d4 {[%clk 0:02:59.9]} 3... cxd4 {[%clk 0:03:01.1]}
4. Nxd4 {[%clk 0:03:00.8]} 4... Nf6 {[%clk 0:03:01.5]} 5. Nc3 {[%clk 0:03:01.6]}
5... g6 {[%clk 0:03:02.1]} 6. f4 {[%clk 0:02:58.3]} 6... Nc6 {[%clk 0:02:59.9]}
7. Nxc6 {[%clk 0:02:58.1]} 7... bxc6 {[%clk 0:02:59.7]} 8. e5 {[%clk 0:02:59]}
8... dxe5 {[%clk 0:02:32.9]} 9. Qxd8+ {[%clk 0:02:58.2]} 9... Kxd8 {[%clk
0:02:32.2]} 10. fxe5 {[%clk 0:02:58.9]} 10... Ng4 {[%clk 0:02:31.7]} 11. Bf4
{[%clk 0:02:56.5]} 11... Bg7 {[%clk 0:02:28.9]} 12. O-O-O+ {[%clk 0:02:49.8]}
12... Ke8 {[%clk 0:02:28.7]} 13. Nb5 {[%clk 0:02:40.9]} 13... Bd7 {[%clk
0:01:34.2]} 14. Nc7+ {[%clk 0:02:38.1]} 14... Kd8 {[%clk 0:01:34.5]} 15. e6
{[%clk 0:02:33]} 15... fxe6 {[%clk 0:01:19.3]} 16. Nxe6+ {[%clk 0:02:32.9]}
16... Ke8 {[%clk 0:01:15.1]} 17. Nxg7+ {[%clk 0:02:26.9]} 17... Kf7 {[%clk
0:01:14.9]} 18. Rxd7 {[%clk 0:02:26.1]} 18... Nf6 {[%clk 0:01:10.1]} 19. Bc4+
{[%clk 0:02:18.5]} 1-0

[Event "Late-Titled-Tuesday-Blitz-April-16-2024"]
[Site "Chess.com"]
[Date "2024.04.16"]
[Round "2"]
[White "rhwr"]
[Black "pedroholly22"]
[Result "0-1"]
[WhiteElo "2246"]
[BlackElo "2497"]
[TimeControl "180+1"]
[EndTime "14:14:30 PDT"]
[Termination "pedroholly22 won by resignation"]

1. e4 {[%clk 0:03:00.9]} 1... c5 {[%clk 0:02:59.7]} 2. Be2 {[%clk 0:02:58.2]}
2... e6 {[%clk 0:02:56.2]} 3. f4 {[%clk 0:02:56.7]} 3... d5 {[%clk 0:02:55.5]}
4. d3 {[%clk 0:02:55.6]} 4... Nf6 {[%clk 0:02:55]} 5. e5 {[%clk 0:02:54.8]} 5...
Nfd7 {[%clk 0:02:54.5]} 6. Nf3 {[%clk 0:02:55.3]} 6... Be7 {[%clk 0:02:55.1]} 7.
O-O {[%clk 0:02:55.1]} 7... Nc6 {[%clk 0:02:55.9]} 8. c3 {[%clk 0:02:55.2]} 8...
b5 {[%clk 0:02:55.3]} 9. Qe1 {[%clk 0:02:54.9]} 9... g6 {[%clk 0:02:54.6]} 10.
Be3 {[%clk 0:02:49.5]} 10... b4 {[%clk 0:02:54.9]} 11. Nbd2 {[%clk 0:02:47.3]}
11... Ba6 {[%clk 0:02:54.3]} 12. d4 {[%clk 0:02:38.9]} 12... Bxe2 {[%clk
0:02:53.4]} 13. Qxe2 {[%clk 0:02:39.3]} 13... bxc3 {[%clk 0:02:52.6]} 14. bxc3
{[%clk 0:02:38.8]} 14... Qc7 {[%clk 0:02:45.3]} 15. Rac1 {[%clk 0:02:33.7]}
15... c4 {[%clk 0:02:45.3]} 16. g4 {[%clk 0:02:26.4]} 16... h5 {[%clk
0:02:41.2]} 17. h3 {[%clk 0:02:24.6]} 17... hxg4 {[%clk 0:02:41.3]} 18. hxg4
{[%clk 0:02:24.6]} 18... O-O-O {[%clk 0:02:41.1]} 19. Kg2 {[%clk 0:02:22.1]}
19... Nb6 {[%clk 0:02:38.2]} 20. Rh1 {[%clk 0:02:21.1]} 20... Na4 {[%clk
0:02:38.2]} 21. Rxh8 {[%clk 0:02:16.3]} 21... Rxh8 {[%clk 0:02:37.9]} 22. Qd1
{[%clk 0:02:13.1]} 22... Qa5 {[%clk 0:02:37.8]} 23. Qc2 {[%clk 0:02:11.6]} 23...
Ba3 {[%clk 0:02:37]} 24. Re1 {[%clk 0:01:53.1]} 24... Nxc3 {[%clk 0:02:35.4]}
25. Ng5 {[%clk 0:01:44.2]} 25... Nd8 {[%clk 0:02:18.5]} 26. f5 {[%clk
0:01:40.3]} 26... gxf5 {[%clk 0:02:17.3]} 27. gxf5 {[%clk 0:01:40]} 27... Rg8
{[%clk 0:02:16.5]} 28. f6 {[%clk 0:01:36.7]} 28... Ne4 {[%clk 0:02:14.4]} 29.
Rb1 {[%clk 0:01:26.5]} 29... Nxg5 {[%clk 0:02:12.9]} 0-1

[Event "Late-Titled-Tuesday-Blitz-April-16-2024"]
[Site "Chess.com"]
[Date "2024.04.16"]
[Round "2"]
[White "DonkyDonkyDonkey"]
[Black "OPQRC"]
[Result "1-0"]
[WhiteElo "2911"]
[BlackElo "2590"]
[TimeControl "180+1"]
[EndTime "14:14:47 PDT"]
[Termination "DonkyDonkyDonkey won by checkmate"]

1. e4 {[%clk 0:03:00.9]} 1... c5 {[%clk 0:02:59.8]} 2. Nc3 {[%clk 0:03:00.3]}
2... e6 {[%clk 0:02:59.4]} 3. f4 {[%clk 0:02:59.2]} 3... d6 {[%clk 0:02:55.9]}
4. Nf3 {[%clk 0:02:59.7]} 4... g6 {[%clk 0:02:44.4]} 5. Bc4 {[%clk 0:02:59.7]}
5... Bg7 {[%clk 0:02:44.2]} 6. O-O {[%clk 0:03:00.4]} 6... Ne7 {[%clk
0:02:43.8]} 7. d3 {[%clk 0:03:00.6]} 7... Nbc6 {[%clk 0:02:41.5]} 8. Qe1 {[%clk
0:03:00.9]} 8... Nd4 {[%clk 0:02:39.9]} 9. Nxd4 {[%clk 0:03:00.2]} 9... cxd4
{[%clk 0:02:39.3]} 10. Ne2 {[%clk 0:03:01]} 10... d5 {[%clk 0:02:29]} 11. Bb3
{[%clk 0:03:01.1]} 11... dxe4 {[%clk 0:02:26.8]} 12. dxe4 {[%clk 0:03:02]} 12...
b5 {[%clk 0:02:16]} 13. Ng3 {[%clk 0:03:00.7]} 13... O-O {[%clk 0:02:06.1]} 14.
f5 {[%clk 0:02:54.7]} 14... exf5 {[%clk 0:02:04.8]} 15. Bg5 {[%clk 0:02:55.4]}
15... h6 {[%clk 0:01:54.4]} 16. Bxe7 {[%clk 0:02:55.3]} 16... Qxe7 {[%clk
0:01:55.3]} 17. exf5 {[%clk 0:02:56.2]} 17... Qg5 {[%clk 0:01:21.3]} 18. Qe4
{[%clk 0:02:18.1]} 18... Bxf5 {[%clk 0:01:09.5]} 19. Nxf5 {[%clk 0:02:17.1]}
19... Rae8 {[%clk 0:00:34.9]} 20. Bxf7+ {[%clk 0:02:15.1]} 20... Kxf7 {[%clk
0:00:25.9]} 21. Nxh6# {[%clk 0:02:14.3]} 1-0

[Event "Late-Titled-Tuesday-Blitz-April-16-2024"]
[Site "Chess.com"]
[Date "2024.04.16"]
[Round "2"]
[White "Veleamater"]
[Black "SmirnovTimofey2000"]
[Result "1-0"]
[WhiteElo "2430"]
[BlackElo "1987"]
[TimeControl "180+1"]
[EndTime "14:14:49 PDT"]
[Termination "Veleamater won on time"]

1. g3 {[%clk 0:03:00.9]} 1... g6 {[%clk 0:02:59.3]} 2. Bg2 {[%clk 0:03:01.1]}
2... Bg7 {[%clk 0:02:59.5]} 3. d3 {[%clk 0:03:02]} 3... d5 {[%clk 0:02:58.6]} 4.
Nf3 {[%clk 0:03:02.5]} 4... c6 {[%clk 0:02:58.8]} 5. O-O {[%clk 0:03:03.1]} 5...
Nf6 {[%clk 0:02:59.2]} 6. Nc3 {[%clk 0:03:03.6]} 6... O-O {[%clk 0:02:57.4]} 7.
h3 {[%clk 0:03:04.2]} 7... Nbd7 {[%clk 0:02:50]} 8. e4 {[%clk 0:03:03.7]} 8...
dxe4 {[%clk 0:02:43.5]} 9. dxe4 {[%clk 0:03:03.9]} 9... e5 {[%clk 0:02:39.6]}
10. Be3 {[%clk 0:03:02]} 10... Re8 {[%clk 0:02:33.5]} 11. Nd2 {[%clk 0:03:02]}
11... Nb6 {[%clk 0:02:27]} 12. f4 {[%clk 0:03:00.8]} 12... Be6 {[%clk
0:02:11.3]} 13. f5 {[%clk 0:02:58.3]} 13... Bc4 {[%clk 0:02:10.3]} 14. Rf2
{[%clk 0:02:58]} 14... Qe7 {[%clk 0:01:58.9]} 15. Bxb6 {[%clk 0:02:57.1]} 15...
axb6 {[%clk 0:01:30.5]} 16. Nxc4 {[%clk 0:02:56.9]} 16... b5 {[%clk 0:01:25.4]}
17. Nd2 {[%clk 0:02:53.7]} 17... Red8 {[%clk 0:01:20.3]} 18. Qe2 {[%clk
0:02:53.6]} 18... Bh6 {[%clk 0:01:11]} 19. Nb3 {[%clk 0:02:53]} 19... b4 {[%clk
0:01:05.1]} 20. Nd1 {[%clk 0:02:52.6]} 20... c5 {[%clk 0:01:01.5]} 21. Kh2
{[%clk 0:02:52.2]} 21... c4 {[%clk 0:00:59]} 22. Qxc4 {[%clk 0:02:47.4]} 22...
Rac8 {[%clk 0:00:39]} 23. Qe2 {[%clk 0:02:44.4]} 1-0

[Event "Late-Titled-Tuesday-Blitz-April-16-2024"]
[Site "Chess.com"]
[Date "2024.04.16"]
[Round "2"]
[White "cukus"]
[Black "ahmedkandiliii"]
[Result "1-0"]
[WhiteElo "2319"]
[BlackElo "2493"]
[TimeControl "180+1"]
[EndTime "14:14:54 PDT"]
[Termination "cukus won by checkmate"]

1. d4 {[%clk 0:03:00.9]} 1... Nf6 {[%clk 0:02:58.4]} 2. c4 {[%clk 0:03:00.4]}
2... g6 {[%clk 0:02:56.1]} 3. Nc3 {[%clk 0:03:00.2]} 3... Bg7 {[%clk 0:02:55.3]}
4. e4 {[%clk 0:02:59.7]} 4... d6 {[%clk 0:02:55.6]} 5. Nf3 {[%clk 0:02:52.3]}
5... Rf8 {[%clk 0:02:55.1]} 6. Be2 {[%clk 0:02:52.7]} 6... Nc6 {[%clk
0:02:53.1]} 7. O-O {[%clk 0:02:48.6]} 7... Bg4 {[%clk 0:02:49.2]} 8. Bf4 {[%clk
0:02:30]} 8... Nh5 {[%clk 0:02:45.9]} 9. Be3 {[%clk 0:02:29.6]} 9... e5 {[%clk
0:02:44.2]} 10. dxe5 {[%clk 0:02:26.7]} 10... dxe5 {[%clk 0:02:35.8]} 11. Qa4
{[%clk 0:02:26]} 11... Nf4 {[%clk 0:02:12.9]} 12. Bxf4 {[%clk 0:02:19.5]} 12...
exf4 {[%clk 0:02:13.8]} 13. Nd5 {[%clk 0:02:16.3]} 13... Qd7 {[%clk 0:01:25]}
14. Rad1 {[%clk 0:02:10.9]} 14... O-O-O {[%clk 0:01:10.7]} 15. b4 {[%clk
0:02:03.5]} 15... Bxf3 {[%clk 0:01:08.1]} 16. Bxf3 {[%clk 0:02:02.9]} 16... Nd4
{[%clk 0:01:08.4]} 17. Qxa7 {[%clk 0:01:57.9]} 17... Nxf3+ {[%clk 0:00:38.5]}
18. gxf3 {[%clk 0:01:58.8]} 18... Qc6 {[%clk 0:00:39.2]} 19. Ne7# {[%clk
0:01:53.5]} 1-0